fUSD/lending_fUSD_20240713
["ID","MTS","AMOUNT","RATE_DAILY","PERIOD"]
[331929739,1720861832069,-500.0,0.00013788,2]
[331929740,1720861832079,-500.0,0.00013789,2]
[331929741,1720861832089,-200.0,0.00013789,2]
[331929742,1720861832099,-218.59405976,0.0001379,2]
[331929743,1720861832108,-218.59405976,0.0001379,2]
[331929744,1720861832117,-218.59405976,0.0001379,2]
[331929745,1720861832126,-218.59405976,0.0001379,2]
[331929746,1720861832135,-218.59405976,0.0001379,2]
[331929747,1720861832145,-218.59405976,0.0001379,2]
[331929748,1720861832154,-150.0,0.00013791,2]
[331929749,1720861832163,-7500.0,0.000138,2]
[331929750,1720861832172,-300.0,0.000138,5]
[331929751,1720861832185,-279.44065668,0.000138,2]
[331929752,1720861832195,-322.88753622,0.000138,2]
[331929753,1720861832204,-218.59405976,0.000138,2]
[331929754,1720861832216,-160.86862208,0.000138,2]
[331929755,1720861832225,-150.0,0.00013811,2]
[331929756,1720861832235,-160.86862206,0.00013825,2]
[331929757,1720861832244,-218.59405976,0.00013833,2]
[331929758,1720861832254,-255.0,0.0001384,2]
[331929759,1720861832264,-420.0,0.00013842,2]
[331929760,1720861832273,-150.0,0.00013844,2]
[331929761,1720861832282,-160.86862206,0.0001385,2]
[331929762,1720861832291,-150.0,0.00013862,2]
[331929763,1720861832300,-218.59405976,0.00013867,2]
[331929764,1720861832310,-150.0,0.00013868,2]
[331929765,1720861832319,-160.86862206,0.00013875,2]
[331929766,1720861832328,-500.0,0.00013879,2]
[331929767,1720861832337,-371.95409546,0.00013879,2]
[331929768,1720861832347,-186.39943558,0.00013879,2]
[331929769,1720861832359,-150.0,0.00013879,2]
[331929770,1720861832368,-175.18266171,0.00013879,2]
[331929771,1720861832377,-500.0,0.00013879,2]
[331929772,1720861832387,-1233.15,0.00013879,2]
[331929773,1720861832397,-150.0,0.00013884,2]
[331929774,1720861832406,-273.09054926,0.00013891,2]
[331929775,1720861832416,-319.18673743,0.00013899,2]
[331929776,1720861832425,-383.68101478,0.00013899,2]
[331929777,1720861832439,-1078.65,0.00013899,2]
[331929778,1720861832448,-834.44,0.00013899,2]
[331929779,1720861832458,-500.0,0.00013899,2]
[331929780,1720861832468,-501.48442129,0.00013899,2]
[331929781,1720861832478,-297.27,0.00013899,2]
[331929782,1720861832488,-418.27092603,0.00013899,2]
[331929783,1720861832497,-500.0,0.00013899,2]
[331929784,1720861832508,-500.0,0.00013899,2]
[331929785,1720861832518,-500.0,0.00013899,2]
[331929786,1720861832528,-500.0,0.00013899,2]
[331929787,1720861832537,-192.28081156,0.00013899,2]
[331929788,1720861832546,-500.0,0.00013899,2]
[331929789,1720861832556,-863.36,0.00013899,2]
[331929790,1720861832565,-928.89,0.00013899,2]
[331929791,1720861832575,-500.0,0.00013899,2]
[331929792,1720861832584,-108276.92872357,0.000139,2]
[331929798,1720861837666,-13807.46081107,0.000139,2]
[331929799,1720861837726,-2396.30781176,0.000139,2]
[331929831,1720861839688,-788.72083995,0.000139,2]
[331929832,1720861839700,-2459.97296239,0.000139,2]
[331929833,1720861839711,-7103.85414489,0.000139,2]
[331929834,1720861839722,-3850.09787817,0.000139,2]
[331929835,1720861839856,-512.88154659,0.000139,2]
[331929836,1720861841829,-556.67499996,0.000139,2]
[331929837,1720861841841,-989.22878096,0.000139,2]
[331929838,1720861841852,-952.47687904,0.000139,2]
[331929888,1720861842501,-29638.79714139,0.000139,2]
[331929889,1720861842616,-3078.39999999,0.000139,2]
[331929890,1720861842628,-431.58851755,0.000139,2]
[331929891,1720861842673,-672.32,0.000139,2]
[331930029,1720861844463,-377.50848145,0.000139,2]
[331930030,1720861845457,-1092.7729105,0.000139,2]
[331930031,1720861845516,-2999.99999987,0.000139,2]
[331930032,1720861845578,-3137.56541814,0.000139,2]
[331930033,1720861845638,-5755.3,0.000139,2]
[331930034,1720861845756,-7088.42811936,0.000139,2]
[331930035,1720861845767,-709.46397292,0.000139,2]
[331930036,1720861845816,-341.58632942,0.000139,2]
[331930042,1720862328654,377.01,0.00010934,2]
[331930046,1720862684221,-227.34202992,0.00012314,2]
[331930047,1720862684242,-3873.65797008,0.00012833,2]
[331930049,1720862756761,4164.85814405,6.94e-05,2]
[331930082,1720862869122,730.35248658,8.412e-05,2]
[331930085,1720862891691,756.85228558,0.00011199,2]
[331930087,1720862896527,540.76250872,8.412e-05,2]
[331930098,1720862927514,234.23922606,0.00025,60]
[331930100,1720862930144,381.72,0.00010696,2]
[331930103,1720862953984,156.39174927,0.00010196,2]
[331930104,1720862959692,150.00000001,0.00025,60]
[331930107,1720862982127,227.34202992,0.00011199,2]
[331930108,1720862983508,150.0,0.00025,60]
[331930109,1720862989706,150.0,0.00025,60]
[331930110,1720862993052,150.0,0.00025,60]
[331930124,1720863031654,-180.0,0.00012314,2]
[331930125,1720863031664,-289.32495314,0.000125,2]
[331930126,1720863031674,-758.25289816,0.0001251,2]
[331930127,1720863031683,-150.0,0.000126,2]
[331930128,1720863031693,-235.45,0.00012628,2]
[331930129,1720863031704,-316.3859,0.00012733,2]
[331930130,1720863031717,-300.0,0.00012831,2]
[331930131,1720863031726,-1570.5862487,0.00012832,2]
[331930132,1720863031738,-13809.43964764,0.00012832,2]
[331930133,1720863031747,-11553.37202992,0.00012833,2]
[331930134,1720863031758,-1000.0,0.00012851,2]
[331930135,1720863031768,-160.71,0.00012872,2]
[331930136,1720863031778,-250.0,0.00012884,2]
[331930137,1720863031788,-381.72,0.0001296,2]
[331930138,1720863031799,-180.0,0.00012965,2]
[331930139,1720863031810,-155.0,0.00012965,2]
[331930140,1720863031819,-1250.0,0.00013,2]
[331930141,1720863031829,-700.0,0.000131,4]
[331930142,1720863031839,-1500.0,0.000132,4]
[331930143,1720863031849,-2200.0,0.000133,4]
[331930144,1720863031858,-505.19,0.000134,2]
[331930145,1720863031868,-499.99,0.000134,2]
[331930146,1720863031878,-3000.0,0.000134,4]
[331930147,1720863031890,-313.45452371,0.00013428,2]
[331930148,1720863031899,-3700.0,0.000135,4]
[331930149,1720863031909,-2131.0627991,0.00013516,2]
[331930150,1720863031919,-700.0,0.000136,4]
[331930151,1720863031929,-700.0,0.000137,5]
[331930152,1720863031939,-150.0,0.00013759,2]
[331930153,1720863031949,-2420.0457,0.0001376,2]
[331930154,1720863031959,-500.0,0.00013789,2]
[331930155,1720863031969,-200.0,0.00013789,2]
[331930156,1720863031979,-9505.70880658,0.00013797,2]
[331930157,1720863031990,-689.55768541,0.00013797,2]
[331930158,1720863032002,-12411.84652715,0.00013797,2]
[331930159,1720863032014,-469.58463046,0.00013797,2]
[331930160,1720863032031,-15509.38427015,0.00013797,2]
[331930161,1720863032047,-597.34227907,0.00013797,2]
[331930162,1720863032059,-10408.46588233,0.00013797,2]
[331930163,1720863032069,-218.59405976,0.000138,2]
[331930164,1720863032078,-155.64925031,0.000138,2]
[331930165,1720863032088,-1000.0,0.000138,2]
[331930166,1720863032098,-2861.0871,0.000138,2]
[331930167,1720863032107,-24061.0875,0.000138,2]
[331930169,1720863032117,-700.0,0.000138,5]
[331930170,1720863032127,-2500.0,0.000138,2]
[331930172,1720863032138,-158.6256506,0.00013833,2]
[331930175,1720863032150,-164.26188561,0.00013833,2]
[331930176,1720863032159,-155.64925028,0.00013833,2]
[331930178,1720863032168,-155.64925028,0.00013867,2]
[331930180,1720863032178,-177.36423829,0.00013867,2]
[331930182,1720863032188,-785.20134825,0.00013899,2]
[331930184,1720863032197,-1181.77,0.00013899,2]
[331930186,1720863032207,-500.0,0.00013899,2]
[331930188,1720863032217,-1033.71,0.00013899,2]
[331930190,1720863032227,-799.67,0.00013899,2]
[331930192,1720863032237,-292.33438899,0.00013899,2]
[331930194,1720863032247,-500.0,0.00013899,2]
[331930196,1720863032256,-500.0,0.00013899,2]
[331930198,1720863032266,-500.0,0.00013899,2]
[331930200,1720863032276,-827.39,0.00013899,2]
[331930202,1720863032286,-890.18,0.00013899,2]
[331930204,1720863032295,-421.17932741,0.00013899,2]
[331930206,1720863032305,-500.0,0.00013899,2]
[331930207,1720863032315,-4117.29809353,0.000139,2]
[331930208,1720863032326,-1069.50759817,0.000139,2]
[331930209,1720863032342,-261.17,0.000139,2]
[331930228,1720863037735,-313.45452372,0.00013446,2]
[331930229,1720863037744,-957.44163965,0.000139,2]
[331930396,1720863039844,-1405.63258024,0.000139,2]
[331930398,1720863039856,-77766.68725008,0.000139,2]
[331930400,1720863039866,-2500.0,0.000139,2]
[331930402,1720863039876,-200.0,0.000139,2]
[331930404,1720863039888,-568.0,0.000139,2]
[331930406,1720863039897,-155.19027487,0.000139,2]
[331930408,1720863039907,-2895.03087924,0.000139,2]
[331930410,1720863039918,-485.49,0.000139,2]
[331930420,1720863040011,-3004.65725523,0.000139,2]
[331930423,1720863040023,-204.63221723,0.000139,2]
[331930425,1720863040032,-1759.32208801,0.000139,2]
[331930427,1720863040043,-4970.7986999,0.000139,2]
[331930735,1720863042977,-548.48320319,0.00013899,2]
[331930738,1720863042987,-5712.35873344,0.000139,2]
[331930749,1720863043065,-9105.41861925,0.000139,2]
[331930751,1720863043075,-96426.4860972,0.000139,2]
[331930753,1720863043084,-162.44413563,0.000139,2]
[331930755,1720863043094,-155.64925028,0.000139,2]
[331930757,1720863043103,-1000.0,0.000139,2]
[331930758,1720863043113,-700.0,0.000139,5]
[331930760,1720863043124,-356.0,0.000139,2]
[331930762,1720863043133,-558.7466,0.000139,2]
[331930764,1720863043143,-177.36423829,0.000139,2]
[331930765,1720863043152,-1000.0,0.000139,2]
[331930766,1720863043162,-814.2858,0.000139,2]
[331930767,1720863043171,-225.0,0.000139,2]
[331930768,1720863043180,-430.8209,0.000139,2]
[331930769,1720863043190,-4831.32080089,0.000139,2]
[331930770,1720863043200,-500.0,0.00013909,2]
[331930771,1720863043209,-657.006823,0.0001392,2]
[331930772,1720863043220,-221.56109,0.0001392,2]
[331930773,1720863043229,-189.707527,0.0001392,2]
[331930774,1720863043239,-1027.23263772,0.00013923,3]
[331930775,1720863043249,-419.248357,0.00013923,2]
[331930776,1720863043259,-653.040338,0.00013923,2]
[331930778,1720863043268,-383.827258,0.00013923,2]
[331930779,1720863043278,-5405.5461629,0.00013933,2]
[331930781,1720863043288,-4221.2819741,0.00013933,2]
[331930783,1720863043298,-3037.0177853,0.00013933,2]
[331930785,1720863043308,-1852.7535966,0.00013933,2]
[331930787,1720863043317,-668.4894078,0.00013933,2]
[331930789,1720863043327,-17675.4947254,0.00013933,2]
[331930791,1720863043337,-13803.0913103,0.00013933,2]
[331930793,1720863043347,-9930.6878951,0.00013933,2]
[331930795,1720863043356,-2616.03550114,0.00013933,2]
[331930818,1720863045699,-791.27499999,0.000139,2]
[331930825,1720863045785,-208.72500001,0.000139,2]
[331930826,1720863045797,-404.03539613,0.00013933,2]
[331930827,1720863045869,-316.96898487,0.00013933,2]
[331930828,1720863045881,-2721.24459776,0.00013933,2]
[331930829,1720863045890,-2185.8810648,0.00013933,2]
[331930830,1720863045899,-683.87433745,0.00013933,2]
[331930831,1720863045954,-1698.38257917,0.00013933,2]
[331930832,1720863046043,-1540.93642084,0.00013933,2]
[331930987,1720863122869,150.0,0.00025,60]
[331930994,1720863445392,1258.7447791,0.00025,60]
[331930995,1720863576856,249.69201822,0.00010939,2]
[331930996,1720863576893,140.28798178,0.00010939,2]
[331930999,1720863709926,159.3,0.00010205,2]
[331931007,1720863950588,356.38582122,0.00011199,2]
[331931008,1720863961559,757.44333328,0.00011199,2]
[331931009,1720863961598,3375.51872934,0.00011199,2]
[331931010,1720863961623,31487.84045655,0.00011199,2]
[331931011,1720863985648,155.0,0.00011199,2]
[331931015,1720864018250,220.46996505,0.00011199,2]
[331931017,1720864049558,155.32730712,0.00011199,2]
[331931019,1720864104984,396.49,0.00010761,2]
[331931020,1720864107117,450.95794745,0.00011199,2]
[331931022,1720864139992,214.90120291,0.00011199,2]
[331931038,1720864168562,33879.6936676,0.00011199,2]
[331931052,1720864231643,163.24,0.00010088,2]
[331931053,1720864233795,-283.39033038,0.00012273,2]
[331931054,1720864233984,-1785.62658188,0.00012273,2]
[331931055,1720864233994,-150.0,0.00012274,2]
[331931056,1720864234003,-3176.50038559,0.000125,2]
[331931057,1720864234059,-355.41834579,0.000125,2]
[331931059,1720864234071,-51.11436862,0.000125,2]
[331931061,1720864234080,-184.0940624,0.000126,2]
[331931063,1720864234090,-160.71,0.00012656,2]
[331931065,1720864234099,-250.0,0.00012656,2]
[331931066,1720864234108,-658.98749093,0.00012656,2]
[331931067,1720864234123,-933.49206678,0.00012656,2]
[331931068,1720864234135,-1850.72560984,0.00012656,2]
[331931069,1720864234147,-2817.34905245,0.00012656,2]
[331931070,1720864234156,-3985.57181279,0.00012659,2]
[331931083,1720864238010,-6391.39818721,0.00012659,2]
[331931084,1720864238020,-185.26,0.0001281,2]
[331931085,1720864238029,-499.99,0.00012812,2]
[331931086,1720864238039,-1000.0,0.00012889,2]
[331931087,1720864238048,-1250.0,0.00013,2]
[331931088,1720864238058,-396.49,0.00013025,2]
[331931089,1720864238067,-1100.0,0.000131,4]
[331931090,1720864238077,-371.10892981,0.00013128,2]
[331931091,1720864238086,-173.22254344,0.00013128,2]
[331931092,1720864238095,-2200.0,0.000132,4]
[331931093,1720864238104,-419.36,0.00013241,2]
[331931094,1720864238113,-3300.0,0.000133,4]
[331931095,1720864238127,-164.71,0.00013378,2]
[331931096,1720864238136,-300.0,0.00013378,2]
[331931097,1720864238145,-150.0,0.00013378,2]
[331931098,1720864238155,-301.35,0.00013378,2]
[331931099,1720864238166,-4500.0,0.000134,4]
[331931100,1720864238175,-150.0,0.00013499,2]
[331931101,1720864238184,-5600.0,0.000135,4]
[331931102,1720864238196,-366.28466214,0.00013574,2]
[331931103,1720864238205,-155.47585867,0.00013574,2]
[331931104,1720864238215,-207.156809,0.00013584,2]
[331931105,1720864238224,-1100.0,0.000136,4]
[331931106,1720864238234,-1100.0,0.000137,5]
[331931107,1720864238243,-207.156809,0.00013753,2]
[331931108,1720864238252,-1100.0,0.000138,5]
[331931109,1720864238261,-500.0,0.00013805,2]
[331931110,1720864238271,-200.0,0.00013805,2]
[331931112,1720864238280,-726.30642565,0.00013849,2]
[331931114,1720864238289,-5090.0,0.00013855,2]
[331931116,1720864238298,-220.39,0.0001389,3]
[331931118,1720864238308,-500.0,0.00013899,2]
[331931120,1720864238317,-265.55424033,0.00013899,2]
[331931121,1720864238326,-500.0,0.00013899,2]
[331931124,1720864238335,-1132.53,0.00013899,2]
[331931127,1720864238345,-1000.0,0.000139,2]
[331931130,1720864238354,-1100.0,0.000139,5]
[331931133,1720864238363,-558.0,0.000139,2]
[331931136,1720864238372,-814.0,0.000139,2]
[331931139,1720864238382,-354.72847661,0.000139,2]
[331931142,1720864238391,-430.0,0.000139,2]
[331931145,1720864238400,-1055.01361465,0.000139,2]
[331931148,1720864238409,-207.156809,0.00013923,2]
[331931151,1720864238418,-574.17629651,0.00013932,2]
[331931154,1720864238427,-2016.70475,0.00013933,2]
[331931156,1720864238436,-12920.79477456,0.00013935,2]
[331931160,1720864238448,-1337.30407824,0.00013935,2]
[331931164,1720864238463,-54294.8414998,0.00013935,2]
[331931165,1720864238472,-344.33,0.00013936,3]
[331931167,1720864238481,-40098.1809857,0.00013946,2]
[331931294,1720864239822,-1145.49596646,0.00012211,2]
[331931298,1720864240056,-2338.07358814,0.00012211,2]
[331931325,1720864242901,-330.0031794,0.00012211,2]
[331931328,1720864242911,-1183.92377728,0.00013516,2]
[331931331,1720864242921,-15585.2581044,0.00013946,2]
[331931334,1720864242931,-41389.61704338,0.00013946,2]
[331931474,1720864245997,-155.0,0.00013899,2]
[331931475,1720864246006,-375.6,0.00013946,2]
[331931476,1720864246018,-592.20419882,0.00013946,2]
[331931477,1720864246123,-456.5165853,0.00013946,2]
[331931478,1720864246136,-1717.2,0.00013952,2]
[331931479,1720864246146,-500.0,0.00013952,2]
[331931480,1720864246155,-305.19,0.00013952,2]
[331931481,1720864246167,-792.91,0.00013952,2]
[331931482,1720864246176,-853.09,0.00013952,2]
[331931483,1720864246186,-500.0,0.00013952,2]
[331931484,1720864246195,-19047.39515163,0.00013953,2]
[331931485,1720864246249,-4189.94607926,0.00013953,2]
[331931486,1720864246261,-1321.4022825,0.00013953,2]
[331931709,1720864449192,2460.66336614,0.00011199,2]
[331931710,1720864557475,1399.54620502,0.00011199,2]
[331931720,1720864613972,286.57411416,0.00025,120]
[331931726,1720864663495,382.86,0.00010996,2]
[331931727,1720864750828,155.41610123,0.00011199,2]
[331931728,1720864896880,163.24,0.00010291,2]
[331931731,1720865049145,155.0,0.00011199,2]
[331931733,1720865126096,304.71289066,0.00011199,2]
[331931734,1720865141094,304.71289066,0.00011199,2]
[331931755,1720865252374,389.24,0.00010923,2]
[331931801,1720865433236,-185.26,0.00012817,2]
[331931802,1720865433246,-268.36,0.00012863,2]
[331931803,1720865433255,-156.70764956,0.00012878,2]
[331931804,1720865433267,-93.29235044,0.00012878,2]
[331931805,1720865433277,-169.33,0.00012902,2]
[331931806,1720865433286,-188.36,0.00012906,2]
[331931807,1720865433295,-207.18155909,0.00012993,2]
[331931808,1720865433451,-266.53614722,0.00012993,2]
[331931809,1720865433563,-526.28229369,0.00012993,2]
[331931810,1720865433573,-68.81113833,0.00013,2]
[331931811,1720865433585,-931.18886167,0.00013,2]
[331931812,1720865433595,-1511.39569332,0.00013128,2]
[331931813,1720865433604,-304.22071678,0.00013128,2]
[331931814,1720865433613,-158.75541604,0.00013128,2]
[331931815,1720865433623,-389.24,0.00013187,2]
[331931816,1720865433633,-691.24,0.00013259,2]
[331931817,1720865433642,-1867.85,0.0001326,2]
[331931818,1720865433652,-24.90331219,0.00013443,2]
[331931823,1720865438906,-275.09668781,0.00013443,2]
[331931824,1720865438915,-513.13057595,0.00013445,2]
[331931825,1720865438927,-1223.63942405,0.00013445,2]
[331931826,1720865438936,-771.28495735,0.000135,2]
[331931827,1720865438945,-150.0,0.000135,2]
[331931828,1720865438955,-208.96968247,0.00013549,2]
[331931829,1720865438965,-685.36886605,0.00013574,2]
[331931830,1720865438975,-180.403034,0.00013584,2]
[331931831,1720865438984,-181.04608,0.00013584,2]
[331931832,1720865438993,-150.0,0.000136,2]
[331931833,1720865439002,-832.53,0.000136,2]
[331931834,1720865439013,-832.53,0.000136,2]
[331931835,1720865439025,-962.01,0.000136,2]
[331931836,1720865439034,-2030.75315804,0.00013643,2]
[331931837,1720865439046,-1197.01998799,0.00013643,2]
[331931838,1720865439061,-818.12885397,0.00013643,2]
[331931839,1720865439071,-905.96953706,0.00013643,2]
[331931840,1720865439083,-293.03046294,0.00013643,2]
[331931841,1720865439092,-2377.977,0.00013643,2]
[331931842,1720865439102,-589.81434387,0.00013643,2]
[331931843,1720865439117,-481.18565613,0.00013643,2]
[331931844,1720865439126,-970.15241951,0.00013674,2]
[331931845,1720865439138,-93.27959593,0.00013674,2]
[331931846,1720865439147,-1203.27101505,0.00013674,2]
[331931847,1720865439156,-250.0,0.00013699,2]
[331931848,1720865439166,-157.3,0.00013699,2]
[331931849,1720865439176,-1500.0,0.00013699,2]
[331931850,1720865439185,-200.0,0.00013699,2]
[331931851,1720865439195,-150.0,0.00013699,2]
[331931852,1720865439207,-158.61,0.000137,2]
[331931853,1720865439216,-150.0,0.000137,2]
[331931854,1720865439226,-150.0,0.000137,2]
[331931855,1720865439236,-109.74439728,0.000137,2]
[331931856,1720865439252,-55.26560272,0.000137,2]
[331931857,1720865439261,-832.53,0.000137,2]
[331931858,1720865439271,-150.0,0.000137,2]
[331931859,1720865439285,-832.53,0.000137,2]
[331931860,1720865439295,-832.53,0.000137,2]
[331931861,1720865439306,-258.00372,0.0001381,2]
[331931862,1720865439316,-500.0,0.00013815,2]
[331931863,1720865439325,-200.0,0.00013815,2]
[331931864,1720865439334,-1218.61381712,0.00013862,2]
[331931865,1720865439343,-452.97828579,0.00013862,2]
[331931866,1720865439352,-1218.61381706,0.00013866,2]
[331931867,1720865439361,-452.97828576,0.00013866,2]
[331931868,1720865439370,-1218.61381706,0.0001387,2]
[331931870,1720865439380,-452.97828576,0.0001387,2]
[331931872,1720865439389,-1218.61381706,0.00013875,2]
[331931874,1720865439398,-452.97828576,0.00013875,2]
[331931875,1720865439407,-1218.61381706,0.00013879,2]
[331931877,1720865439416,-452.97828576,0.00013879,2]
[331931879,1720865439425,-14664.18263901,0.0001388,2]
[331931882,1720865439437,-2785.1217323,0.0001388,2]
[331931884,1720865439447,-1218.61381706,0.00013883,2]
[331931886,1720865439456,-452.97828576,0.00013883,2]
[331931888,1720865439465,-1218.61381706,0.00013887,2]
[331931890,1720865439474,-452.97828576,0.00013887,2]
[331931892,1720865439483,-2023.99981954,0.00013889,2]
[331931894,1720865439495,-463.32368924,0.00013889,2]
[331931896,1720865439508,-1218.61381706,0.00013892,2]
[331931898,1720865439518,-452.97828576,0.00013892,2]
[331931900,1720865439528,-1218.61381706,0.00013896,2]
[331931902,1720865439538,-452.97828576,0.00013896,2]
[331931904,1720865439548,-1183.92377728,0.00013899,2]
[331931906,1720865439558,-382.18081047,0.00013899,2]
[331931908,1720865439568,-1000.0,0.000139,2]
[331931910,1720865439578,-500.6988685,0.000139,2]
[331931912,1720865439587,-1603.1693131,0.000139,2]
[331931914,1720865439596,-1218.61381706,0.000139,2]
[331931916,1720865439605,-452.97828576,0.000139,2]
[331931917,1720865439615,-1000.0,0.000139,2]
[331931920,1720865439624,-302.0,0.0001392,2]
[331931922,1720865439633,-421.89,0.00013923,2]
[331931923,1720865439642,-1830.0,0.00013923,2]
[331931925,1720865439651,-361.0,0.00013923,2]
[331931927,1720865439660,-1251.0,0.00013923,2]
[331931929,1720865439670,-427.97626546,0.00013923,2]
[331931932,1720865439681,-609.78714,0.00013923,2]
[331931934,1720865439692,-728.35942077,0.00013923,2]
[331931936,1720865439703,-610.87717377,0.00013923,2]
[331931938,1720865439712,-206.508,0.00013923,2]
[331931940,1720865439721,-1323.419,0.00013923,2]
[331931942,1720865439731,-262.988,0.00013923,2]
[331931944,1720865439743,-416.87385851,0.00013923,2]
[331931946,1720865439754,-1582.22214149,0.00013923,2]
[331931948,1720865439764,-407.25684782,0.00013923,2]
[331931985,1720865440101,-1133.6181,0.00013899,2]
[331931987,1720865440111,-141.74315218,0.00013923,2]
[331931988,1720865440120,-597.93874782,0.00013923,2]
[331932001,1720865440230,-700.75770547,0.00013923,2]
[331932003,1720865440242,-527.86805897,0.00013923,2]
[331932005,1720865440254,-1001.30950324,0.00013923,2]
[331932007,1720865440266,-448.1259845,0.00013923,2]
[331932009,1720865440276,-7409.5294859,0.00013946,2]
[331932011,1720865440285,-4876.02015112,0.00013946,2]
[331932013,1720865440296,-4302.89567398,0.00013946,2]
[331932019,1720865440357,-602.00767301,0.00013233,2]
[331932021,1720865440370,-923.15264686,0.00013233,2]
[331932239,1720865443073,-1377.53454,0.00013233,2]
[331932240,1720865443085,-318.29532002,0.00013233,2]
[331932241,1720865443096,-6779.00982011,0.00013233,2]
[331932242,1720865443107,-310.0,0.00013472,2]
[331932243,1720865443117,-1390.62603036,0.00013946,2]
[331932244,1720865443128,-657.39,0.00013946,2]
[331932245,1720865443187,-3592.32883106,0.00013946,2]
[331932325,1720865444296,-1079.31918,0.00013946,2]
[331932327,1720865444307,-6182.23250689,0.00013946,2]
[331932329,1720865444318,-661.66608519,0.00013946,2]
[331932331,1720865444329,-1047.41600235,0.00013946,2]
[331932333,1720865444340,-719.1309999,0.00013946,2]
[331932336,1720865444356,-1957.82233746,0.00013946,2]
[331932338,1720865444367,-387.73914266,0.00013946,2]
[331932340,1720865444377,-3465.7968536,0.00013946,2]
[331932342,1720865444389,-4730.10899832,0.00013946,2]
[331932344,1720865444400,-20639.41208051,0.00013946,2]
[331932346,1720865444409,-150.01,0.00013952,2]
[331932348,1720865444418,-500.0,0.00013952,2]
[331932350,1720865444427,-1085.34,0.00013952,2]
[331932352,1720865444436,-333.94257847,0.00013953,2]
[331932354,1720865444445,-150.0,0.00013953,2]
[331932356,1720865444454,-150.0,0.00013953,2]
[331932358,1720865444463,-150.0,0.00013953,2]
[331932360,1720865444472,-150.0,0.00013953,2]
[331932362,1720865444481,-150.0,0.00013953,2]
[331932363,1720865444490,-150.0,0.00013953,2]
[331932365,1720865444500,-150.0,0.00013953,2]
[331932367,1720865444512,-150.0,0.00013953,2]
[331932369,1720865444521,-150.0,0.00013953,2]
[331932371,1720865444534,-150.0,0.00013953,2]
[331932373,1720865444543,-153.0,0.00013956,2]
[331932375,1720865444553,-6011.5523251,0.00013962,2]
[331932377,1720865444564,-4613.5751643,0.00013962,2]
[331932379,1720865444574,-3215.5980034,0.00013962,2]
[331932381,1720865444585,-1817.6208426,0.00013963,2]
[331932383,1720865444595,-889.92430959,0.00013964,2]
[331932385,1720865444603,-419.6436817,0.00013969,2]
[331932387,1720865444614,-1115.920671,0.00013973,2]
[331932389,1720865444624,-2000.0,0.00013973,3]
[331932391,1720865444634,-45182.7309361,0.00013979,2]
[331932393,1720865444643,-470.93180952,0.00013988,2]
[331932395,1720865444653,-1011.47,0.00013988,2]
[331932397,1720865444662,-1645.65,0.00013988,2]
[331932399,1720865444672,-766.35,0.00013988,2]
[331932401,1720865444681,-500.0,0.00013988,2]
[331932404,1720865444691,-500.0,0.00013988,2]
[331932405,1720865444699,-500.0,0.00013988,2]
[331932407,1720865444709,-500.0,0.00013988,2]
[331932409,1720865444718,-780.71,0.00013988,2]
[331932411,1720865444727,-838.38,0.00013988,2]
[331932413,1720865444736,-529.8654987,0.00013988,2]
[331932415,1720865444745,-500.0,0.00013988,2]
[331932417,1720865444755,-34675.5569989,0.00013989,2]
[331932419,1720865444764,-24168.3830617,0.00013989,2]
[331932421,1720865444773,-13661.2091244,0.00013989,2]
[331932423,1720865444782,-3154.0351872,0.00013989,2]
[331932425,1720865444791,-151.0,0.00013989,2]
[331932427,1720865444800,-151.0,0.00013989,2]
[331932429,1720865444809,-151.0,0.00013989,2]